Department Family,Entity,Date Paid,Expense Type,Expenses Area,Supplier Name,Transaction Reference,Total,VAT Registration Number,Vlookup
Department of Health,Imperial College Healthcare NHS Trust,07/01/2022,Blood Products,Pathology,Nhs Blood And Transplant,4603398,"48,203.38 ",Optional requirement only,0
Department of Health,Imperial College Healthcare NHS Trust,07/01/2022,Clinical Managed Service Contr,"Div Of Surg, Cardiov & Cancer",Blatchford Limited,4605185,"49,430.51 ",Optional requirement only,0
Department of Health,Imperial College Healthcare NHS Trust,07/01/2022,Computer Software/License,Information & Comms Technology,Atos It Services Uk Ltd,4600793,"331,916.40 ",Optional requirement only,0
Department of Health,Imperial College Healthcare NHS Trust,07/01/2022,Computer Software/License,Information & Comms Technology,Ibm United Kingdom Ltd,4590863,"60,870.24 ",Optional requirement only,0
Department of Health,Imperial College Healthcare NHS Trust,07/01/2022,Consultancy Fees,Office Of Chief Executive,Develop Consulting,4562319,"69,967.20 ",Optional requirement only,0
Department of Health,Imperial College Healthcare NHS Trust,07/01/2022,Consultancy Fees,Office Of Chief Executive,Develop Consulting,4576606,"61,272.00 ",Optional requirement only,0
Department of Health,Imperial College Healthcare NHS Trust,07/01/2022,Consultancy Fees,Press & Communications,The Team Brand Communications Ltd,4608876,"37,296.00 ",Optional requirement only,0
Department of Health,Imperial College Healthcare NHS Trust,07/01/2022,Course Fees,Nursing Directorate,"Ealing, Hammersmith & West London College",4599206,"36,150.00 ",Optional requirement only,0
Department of Health,Imperial College Healthcare NHS Trust,07/01/2022,Cx-Hh Consultant Load,Ichnt Balance Sheet,Dr Andrew Wright,4606399,"27,458.42 ",Optional requirement only,0
Department of Health,Imperial College Healthcare NHS Trust,07/01/2022,Cy Auc -Addns-Bd Purchased,Capital Summary,Cuffe  Plc,4597346,"284,593.34 ",Optional requirement only,0
Department of Health,Imperial College Healthcare NHS Trust,07/01/2022,Cy Auc -Addns-Bd Purchased,Capital Summary,Cuffe  Plc,4597468,"239,872.21 ",Optional requirement only,0
Department of Health,Imperial College Healthcare NHS Trust,07/01/2022,Cy Auc -Addns-Bd Purchased,Capital Summary,Cuffe  Plc,4607223,"35,772.68 ",Optional requirement only,0
Department of Health,Imperial College Healthcare NHS Trust,07/01/2022,Cy Auc -Addns- It Eqpt-Addns,Capital Summary,Insight,4584578,"59,824.25 ",Optional requirement only,0
Department of Health,Imperial College Healthcare NHS Trust,07/01/2022,Cy Auc -Addns- Prof Fee)-Purch,Capital Summary,Ramboll Uk Ltd,4596666,"40,055.21 ",Optional requirement only,0
Department of Health,Imperial College Healthcare NHS Trust,07/01/2022,Dist Award - Local Cea,Div Of Med & Integrated Care,Imperial College London,4607129,"27,965.09 ",Optional requirement only,0
Department of Health,Imperial College Healthcare NHS Trust,07/01/2022,Dist Award - Local Cea,"Div Of Surg, Cardiov & Cancer",Imperial College London,4607129,"27,297.00 ",Optional requirement only,0
Department of Health,Imperial College Healthcare NHS Trust,07/01/2022,Dist Award - Nat Cea,Div Of Med & Integrated Care,Imperial College London,4607129,"97,255.73 ",Optional requirement only,0
Department of Health,Imperial College Healthcare NHS Trust,07/01/2022,Dist Award - Nat Cea,"Div Of Surg, Cardiov & Cancer",Imperial College London,4607129,"68,936.26 ",Optional requirement only,0
Department of Health,Imperial College Healthcare NHS Trust,07/01/2022,Dist Award - Nat Cea,Rd Medical Directorate,Imperial College London,4607129,"76,679.01 ",Optional requirement only,0
Department of Health,Imperial College Healthcare NHS Trust,07/01/2022,Drugs Nhs,Div Of Women & Clin Support,Lloyds Retail Chemists Ltd,4596008,"3,535,607.55 ",Optional requirement only,0
Department of Health,Imperial College Healthcare NHS Trust,07/01/2022,Ext Contract - Patient Travel,Estates Directorate,Falck Uk Ambulance Service Limited,4596807,"1,445,875.07 ",Optional requirement only,0
Department of Health,Imperial College Healthcare NHS Trust,07/01/2022,Ic Pay Recharge In: Med,Div Of Med & Integrated Care,Imperial College London,4607129,"179,439.36 ",Optional requirement only,0
Department of Health,Imperial College Healthcare NHS Trust,07/01/2022,Ic Pay Recharge In: Med,Div Of Med & Integrated Care,Imperial College London,4607130,"68,385.57 ",Optional requirement only,0
Department of Health,Imperial College Healthcare NHS Trust,07/01/2022,Ic Pay Recharge In: Med,"Div Of Surg, Cardiov & Cancer",Imperial College London,4607129,"508,279.84 ",Optional requirement only,0
Department of Health,Imperial College Healthcare NHS Trust,07/01/2022,Ic Pay Recharge In: Med,"Div Of Surg, Cardiov & Cancer",Imperial College London,4607130,"129,993.03 ",Optional requirement only,0
Department of Health,Imperial College Healthcare NHS Trust,07/01/2022,Ic Pay Recharge In: Med,Div Of Women & Clin Support,Imperial College London,4607129,"41,370.85 ",Optional requirement only,0
Department of Health,Imperial College Healthcare NHS Trust,07/01/2022,Ic Pay Recharge In: Med,Pathology,Imperial College London,4607062,"29,294.98 ",Optional requirement only,0
Department of Health,Imperial College Healthcare NHS Trust,07/01/2022,Isotopes,Div Of Women & Clin Support,Curium Pharma Uk Ltd,4595627,"39,438.00 ",Optional requirement only,0
Department of Health,Imperial College Healthcare NHS Trust,07/01/2022,Isotopes,Div Of Women & Clin Support,Curium Pharma Uk Ltd,4595629,"41,463.60 ",Optional requirement only,0
Department of Health,Imperial College Healthcare NHS Trust,07/01/2022,Jac - Stock,Balance Sheet St Marys,Alexion Pharma Uk Ltd,4601776,"41,558.40 ",Optional requirement only,Stock
Department of Health,Imperial College Healthcare NHS Trust,07/01/2022,Jac - Stock,Balance Sheet St Marys,Alliance Healthcare (Distribution) Ltd,4607580,"32,436.94 ",Optional requirement only,Stock
Department of Health,Imperial College Healthcare NHS Trust,07/01/2022,Jac - Stock,Balance Sheet St Marys,Alliance Healthcare (Distribution) Ltd,4608388,"43,604.29 ",Optional requirement only,Stock
Department of Health,Imperial College Healthcare NHS Trust,07/01/2022,Jac - Stock,Balance Sheet St Marys,Baxter Healthcare Ltd,4601305,"32,506.99 ",Optional requirement only,Stock
Department of Health,Imperial College Healthcare NHS Trust,07/01/2022,Jac - Stock,Balance Sheet St Marys,Bayer Plc,4601719,"97,176.56 ",Optional requirement only,Stock
Department of Health,Imperial College Healthcare NHS Trust,07/01/2022,Jac - Stock,Balance Sheet St Marys,Bayer Plc,4607368,"42,885.43 ",Optional requirement only,Stock
Department of Health,Imperial College Healthcare NHS Trust,07/01/2022,Jac - Stock,Balance Sheet St Marys,Bms Pharmaceuticals Ltd (0034),4608329,"37,906.60 ",Optional requirement only,Stock
Department of Health,Imperial College Healthcare NHS Trust,07/01/2022,Jac - Stock,Balance Sheet St Marys,Polar Speed Distribution Ltd,4608166,"53,298.00 ",Optional requirement only,Stock
Department of Health,Imperial College Healthcare NHS Trust,07/01/2022,Jac - Stock,Balance Sheet St Marys,Polar Speed Distribution Ltd,4608167,"53,298.00 ",Optional requirement only,Stock
Department of Health,Imperial College Healthcare NHS Trust,07/01/2022,Jac - Stock,Balance Sheet St Marys,Roche Products Ltd,4607416,"42,722.16 ",Optional requirement only,Stock
Department of Health,Imperial College Healthcare NHS Trust,07/01/2022,Jac - Stock,Balance Sheet St Marys,Roche Products Ltd,4608346,"472,111.32 ",Optional requirement only,Stock
Department of Health,Imperial College Healthcare NHS Trust,07/01/2022,Laboratory Chemicals/ Reagents,Pathology,Dnanudge Ltd,46385,"33,120.00 ",Optional requirement only,0
Department of Health,Imperial College Healthcare NHS Trust,07/01/2022,Laboratory Chemicals/ Reagents,Pathology,Dnanudge Ltd,46432,"33,120.00 ",Optional requirement only,0
Department of Health,Imperial College Healthcare NHS Trust,07/01/2022,Laboratory Test Kits,Pathology,Becton Dickinson Uk Ltd,44651,"54,707.10 ",Optional requirement only,0
Department of Health,Imperial College Healthcare NHS Trust,07/01/2022,Legal Fees,Information & Comms Technology,Information Governance Services Limited,4606769,"97,433.89 ",Optional requirement only,0
Department of Health,Imperial College Healthcare NHS Trust,07/01/2022,Medical Gases,Div Of Women & Clin Support,Boc Limited,4595370,"35,931.25 ",Optional requirement only,0
Department of Health,Imperial College Healthcare NHS Trust,07/01/2022,Med & Prof Fees (Imaging Cons),Ichnt Balance Sheet,Lindo Wing Radiology Llp,4606437,"96,217.94 ",Optional requirement only,0
Department of Health,Imperial College Healthcare NHS Trust,07/01/2022,Med & Surg Equip General,"Div Of Surg, Cardiov & Cancer",Healthshare Diagnostics Ltd,4595819,"137,622.25 ",Optional requirement only,0
Department of Health,Imperial College Healthcare NHS Trust,07/01/2022,Med & Surg Equip General,"Div Of Surg, Cardiov & Cancer",Healthshare Diagnostics Ltd,4595820,"137,622.25 ",Optional requirement only,0
Department of Health,Imperial College Healthcare NHS Trust,07/01/2022,Med & Surg Equip Leases,"Div Of Surg, Cardiov & Cancer",Tp Leasing Ltd,4569325,"53,670.58 ",Optional requirement only,0
Department of Health,Imperial College Healthcare NHS Trust,07/01/2022,Med & Surg Equip Repair,"Div Of Surg, Cardiov & Cancer",Ge Medical Systems Limited,4609687,"59,445.90 ",Optional requirement only,0
Department of Health,Imperial College Healthcare NHS Trust,07/01/2022,Med & Surg Equip Repair,Div Of Women & Clin Support,Ge Medical Systems Limited,4592215,"34,200.00 ",Optional requirement only,0
Department of Health,Imperial College Healthcare NHS Trust,07/01/2022,Med & Surg Equip Repair,Div Of Women & Clin Support,Ge Medical Systems Limited,4597616,"39,600.00 ",Optional requirement only,0
Department of Health,Imperial College Healthcare NHS Trust,07/01/2022,Nhs Pay Recharge In: Clerical,"Div Of Surg, Cardiov & Cancer",Nhs Greater East Midlands Csu,4596698,"26,576.00 ",Optional requirement only,0
Department of Health,Imperial College Healthcare NHS Trust,07/01/2022,Other Research Exp - Pay,Rd Medical Directorate,Central & North West London Nhs Ft,4562598,"56,820.37 ",Optional requirement only,0
Department of Health,Imperial College Healthcare NHS Trust,07/01/2022,Other Research Exp - Pay,Rd Surgery & Cancer Division,Imperial College London,4587709,"30,110.42 ",Optional requirement only,0
Department of Health,Imperial College Healthcare NHS Trust,07/01/2022,Other Research Exp - Pay,Rd Surgery & Cancer Division,Imperial College London,4601279,"32,031.63 ",Optional requirement only,0
Department of Health,Imperial College Healthcare NHS Trust,07/01/2022,Other Research Exp - Pay,Rd Surgery & Cancer Division,Imperial College London,4601280,"34,408.00 ",Optional requirement only,0
Department of Health,Imperial College Healthcare NHS Trust,07/01/2022,Patients Appl: Purchase,"Div Of Surg, Cardiov & Cancer",Blatchford Limited,4543869,"736,285.89 ",Optional requirement only,0
Department of Health,Imperial College Healthcare NHS Trust,07/01/2022,Provisions,Estates Directorate,Brakes Bros Ltd,4607126,"156,914.22 ",Optional requirement only,0
Department of Health,Imperial College Healthcare NHS Trust,07/01/2022,Purch Hcare Independent Sector,"Div Of Surg, Cardiov & Cancer",Homelink Healthcare Ltd,4608925,"39,795.75 ",Optional requirement only,0
Department of Health,Imperial College Healthcare NHS Trust,07/01/2022,Rent,"Div Of Surg, Cardiov & Cancer",Hanwell Health Centre,4602029,"36,373.21 ",Optional requirement only,0
Department of Health,Imperial College Healthcare NHS Trust,07/01/2022,Rent,Estates Directorate,Metropolitan Thames Valley,4604639,"51,587.29 ",Optional requirement only,0
Department of Health,Imperial College Healthcare NHS Trust,07/01/2022,Staff Recruitment Costs,Information & Comms Technology,The Hillingdon Hospital Nhs Foundation Trust,4408425,"25,096.00 ",Optional requirement only,0
Department of Health,Imperial College Healthcare NHS Trust,07/01/2022,Staff Recruitment Costs,Information & Comms Technology,The Hillingdon Hospital Nhs Foundation Trust,4486294,"27,842.00 ",Optional requirement only,0
Department of Health,Imperial College Healthcare NHS Trust,07/01/2022,Staff Recruitment Costs,Information & Comms Technology,The Hillingdon Hospital Nhs Foundation Trust,4565796,"34,719.00 ",Optional requirement only,0
Department of Health,Imperial College Healthcare NHS Trust,07/01/2022,Supplies Issues Recharges,Ichnt Balance Sheet,Supply Chain Coordination Ltd (Sccl) ( 101),4580056,"200,107.63 ",Optional requirement only,Stock
Department of Health,Imperial College Healthcare NHS Trust,07/01/2022,Supplies Issues Recharges,Ichnt Balance Sheet,Supply Chain Coordination Ltd (Sccl) ( 101),4580057,"249,717.85 ",Optional requirement only,Stock
Department of Health,Imperial College Healthcare NHS Trust,07/01/2022,Supplies Issues Recharges,Ichnt Balance Sheet,Supply Chain Coordination Ltd (Sccl) ( 101),4580058,"149,163.60 ",Optional requirement only,Stock
Department of Health,Imperial College Healthcare NHS Trust,07/01/2022,Supplies Issues Recharges,Ichnt Balance Sheet,Supply Chain Coordination Ltd (Sccl) ( 101),4582307,"114,292.87 ",Optional requirement only,Stock
Department of Health,Imperial College Healthcare NHS Trust,07/01/2022,Supplies Issues Recharges,Ichnt Balance Sheet,Supply Chain Coordination Ltd (Sccl) ( 101),4582308,"237,624.41 ",Optional requirement only,Stock
Department of Health,Imperial College Healthcare NHS Trust,07/01/2022,Supplies Issues Recharges,Ichnt Balance Sheet,Supply Chain Coordination Ltd (Sccl) ( 101),4586708,"257,205.11 ",Optional requirement only,Stock
Department of Health,Imperial College Healthcare NHS Trust,07/01/2022,Supplies Issues Recharges,Ichnt Balance Sheet,Supply Chain Coordination Ltd (Sccl) ( 101),4586709,"214,335.42 ",Optional requirement only,Stock
Department of Health,Imperial College Healthcare NHS Trust,07/01/2022,Supplies Issues Recharges,Ichnt Balance Sheet,Supply Chain Coordination Ltd (Sccl) ( 101),4586710,"111,060.54 ",Optional requirement only,Stock
Department of Health,Imperial College Healthcare NHS Trust,07/01/2022,Supplies Issues Recharges,Ichnt Balance Sheet,Supply Chain Coordination Ltd (Sccl) ( 101),4590933,"132,892.97 ",Optional requirement only,Stock
Department of Health,Imperial College Healthcare NHS Trust,07/01/2022,Supplies Issues Recharges,Ichnt Balance Sheet,Supply Chain Coordination Ltd (Sccl) ( 101),4590934,"194,474.95 ",Optional requirement only,Stock
Department of Health,Imperial College Healthcare NHS Trust,07/01/2022,Supplies Issues Recharges,Ichnt Balance Sheet,Supply Chain Coordination Ltd (Sccl) ( 101),4590935,"204,898.95 ",Optional requirement only,Stock
Department of Health,Imperial College Healthcare NHS Trust,07/01/2022,Supplies Issues Recharges,Ichnt Balance Sheet,Supply Chain Coordination Ltd (Sccl) ( 101),4593945,"283,999.91 ",Optional requirement only,Stock
Department of Health,Imperial College Healthcare NHS Trust,07/01/2022,Supplies Issues Recharges,Ichnt Balance Sheet,Supply Chain Coordination Ltd (Sccl) ( 101),4594676,"250,632.99 ",Optional requirement only,Stock
Department of Health,Imperial College Healthcare NHS Trust,07/01/2022,Supplies Issues Recharges,Ichnt Balance Sheet,Supply Chain Coordination Ltd (Sccl) ( 101),4594677,"147,926.00 ",Optional requirement only,Stock
Department of Health,Imperial College Healthcare NHS Trust,07/01/2022,Supplies Issues Recharges,Ichnt Balance Sheet,Supply Chain Coordination Ltd (Sccl) ( 101),4596099,"200,342.87 ",Optional requirement only,Stock
Department of Health,Imperial College Healthcare NHS Trust,07/01/2022,Supplies Issues Recharges,Ichnt Balance Sheet,Supply Chain Coordination Ltd (Sccl) ( 101),4596100,"578,751.72 ",Optional requirement only,Stock
Department of Health,Imperial College Healthcare NHS Trust,07/01/2022,Supplies Issues Recharges,Ichnt Balance Sheet,Supply Chain Coordination Ltd (Sccl) ( 101),4596101,"174,238.66 ",Optional requirement only,Stock
Department of Health,Imperial College Healthcare NHS Trust,07/01/2022,Supplies Issues Recharges,Ichnt Balance Sheet,Supply Chain Coordination Ltd (Sccl) ( 101),4598324,"136,541.65 ",Optional requirement only,Stock
Department of Health,Imperial College Healthcare NHS Trust,07/01/2022,Supplies Issues Recharges,Ichnt Balance Sheet,Supply Chain Coordination Ltd (Sccl) ( 101),4598325,"265,506.31 ",Optional requirement only,Stock
Department of Health,Imperial College Healthcare NHS Trust,07/01/2022,Supplies Issues Recharges,Ichnt Balance Sheet,Supply Chain Coordination Ltd (Sccl) ( 101),4598326,"287,184.43 ",Optional requirement only,Stock
Department of Health,Imperial College Healthcare NHS Trust,07/05/2022,Bldg/Eng Equip Maint/Rep,Estates Directorate,Cbre Managed Services Ltd,4613199,"284,427.42 ",Optional requirement only,0
Department of Health,Imperial College Healthcare NHS Trust,07/05/2022,Cy Auc -Addns-Bd Purchased,Capital Summary,Cbre Managed Services Ltd,4613193,"927,637.67 ",Optional requirement only,0
Department of Health,Imperial College Healthcare NHS Trust,07/05/2022,Cy Auc -Addns-Bd Purchased,Capital Summary,Cbre Managed Services Ltd,4613199,"299,179.50 ",Optional requirement only,0
Department of Health,Imperial College Healthcare NHS Trust,07/05/2022,Cy Auc -Addns- It Eqpt-Addns,Capital Summary,Cdw Ltd,4613030,"39,375.36 ",Optional requirement only,0
Department of Health,Imperial College Healthcare NHS Trust,07/05/2022,Dialysers,Div Of Med & Integrated Care,Baxter Healthcare Ltd,4596650,"60,038.63 ",Optional requirement only,0
Department of Health,Imperial College Healthcare NHS Trust,07/05/2022,Dialysers,Div Of Med & Integrated Care,Baxter Healthcare Ltd,4596651,"195,030.00 ",Optional requirement only,0
Department of Health,Imperial College Healthcare NHS Trust,07/05/2022,Drugs Nhs,Div Of Women & Clin Support,Nhs Business Services Authority,4605649,"27,948.66 ",Optional requirement only,0
Department of Health,Imperial College Healthcare NHS Trust,07/05/2022,Interpreting Services,Div Of Women & Clin Support,Oncall Interpreters Ltd [Cw],4596597,"56,601.17 ",Optional requirement only,0
Department of Health,Imperial College Healthcare NHS Trust,07/05/2022,Items Pending Investigation,Ichnt Balance Sheet,Imperial College London,4586478,"386,850.97 ",Optional requirement only,0
Department of Health,Imperial College Healthcare NHS Trust,07/05/2022,Miscellaneous Expenditure,Human Resources,Blackhawk Network Emea Limited,4579242,"33,810.00 ",Optional requirement only,0
Department of Health,Imperial College Healthcare NHS Trust,07/05/2022,Office Equipment,Div Of Women & Clin Support,Oncall Interpreters Ltd [Cw],4581281,"46,779.95 ",Optional requirement only,0
Department of Health,Imperial College Healthcare NHS Trust,07/05/2022,Other Research Exp - Non-Pay,Rd Medical Directorate,Central & North West London Nhs Ft,4611605,"72,655.00 ",Optional requirement only,0
Department of Health,Imperial College Healthcare NHS Trust,07/05/2022,Postage & Carriage,Div Of Women & Clin Support,Xerox (Uk) Ltd,4611625,"48,173.59 ",Optional requirement only,0
Department of Health,Imperial College Healthcare NHS Trust,07/05/2022,Taxi & Other Vehicle Hire,Estates Directorate,Dhl Supply Chain  (Former Excel),4606319,"73,241.81 ",Optional requirement only,0
Department of Health,Imperial College Healthcare NHS Trust,07/07/2022,Blood Products,Pathology,Nhs Blood And Transplant,4601156,"72,203.89 ",Optional requirement only,0
Department of Health,Imperial College Healthcare NHS Trust,07/07/2022,Blood Products,Pathology,Nhs Blood And Transplant,4603449,"53,369.08 ",Optional requirement only,0
Department of Health,Imperial College Healthcare NHS Trust,07/07/2022,Computer Software/License,"Div Of Surg, Cardiov & Cancer",Qubit Health Ltd,4613220,"36,000.00 ",Optional requirement only,0
Department of Health,Imperial College Healthcare NHS Trust,07/07/2022,Dialysers,Div Of Med & Integrated Care,Nxstage Medical Uk Ltd,4594752,"41,579.09 ",Optional requirement only,0
Department of Health,Imperial College Healthcare NHS Trust,07/07/2022,Equip Maint Contracts,Estates Directorate,Cbre Managed Services Ltd,4613156,"36,381.76 ",Optional requirement only,0
Department of Health,Imperial College Healthcare NHS Trust,07/07/2022,Isotopes,Div Of Women & Clin Support,Curium Pharma Uk Ltd,4612960,"63,624.00 ",Optional requirement only,0
Department of Health,Imperial College Healthcare NHS Trust,07/07/2022,Laboratory Equipment,Pathology,Ibg Immucor Limited,45778,"33,397.94 ",Optional requirement only,0
Department of Health,Imperial College Healthcare NHS Trust,07/07/2022,Med & Surg Equip General,"Div Of Surg, Cardiov & Cancer",Distinctive Medical Products Ltd,4586678,"57,663.36 ",Optional requirement only,0
Department of Health,Imperial College Healthcare NHS Trust,07/07/2022,Med & Surg Equip Leases,Estates Directorate,Arjo Uk Ltd,4613147,"115,657.70 ",Optional requirement only,0
Department of Health,Imperial College Healthcare NHS Trust,07/07/2022,Other Transport Costs,Pathology,Dhl Supply Chain  (Former Excel),47041,"76,719.26 ",Optional requirement only,0
Department of Health,Imperial College Healthcare NHS Trust,07/07/2022,Other Transport Costs,Pathology,Dhl Supply Chain  (Former Excel),47042,"36,246.94 ",Optional requirement only,0
Department of Health,Imperial College Healthcare NHS Trust,07/07/2022,Other Transport Costs,Pathology,Dhl Supply Chain  (Former Excel),47043,"144,110.84 ",Optional requirement only,0
Department of Health,Imperial College Healthcare NHS Trust,07/07/2022,Purch Hcare Independent Sector,Div Of Med & Integrated Care,London Central & West Unscheduled Care Collab,4614621,"392,444.20 ",Optional requirement only,0
Department of Health,Imperial College Healthcare NHS Trust,07/07/2022,Transcription Services,Information & Comms Technology,Dictate It Ltd,4596723,"41,384.96 ",Optional requirement only,0
Department of Health,Imperial College Healthcare NHS Trust,07/07/2022,Transcription Services,Information & Comms Technology,Dictate It Ltd,4596724,"52,640.98 ",Optional requirement only,0
Department of Health,Imperial College Healthcare NHS Trust,07/07/2022,Items Pending Investigation,Ichnt Balance Sheet,Peak Scientific Instruments Ltd,4615069,"46,927.32 ",Optional requirement only,0
Department of Health,Imperial College Healthcare NHS Trust,07/08/2022,Agency Ahps: Qualified,"Div Of Surg, Cardiov & Cancer",Reed Specialist Recruitment Ltd,4615354,"63,875.03 ",Optional requirement only,0
Department of Health,Imperial College Healthcare NHS Trust,07/08/2022,Agency Ahps: Qualified,"Div Of Surg, Cardiov & Cancer",Reed Specialist Recruitment Ltd,4615419,"40,016.29 ",Optional requirement only,0
Department of Health,Imperial College Healthcare NHS Trust,07/08/2022,Agency Nursing: Qualified,Div Of Med & Integrated Care,Reed Specialist Recruitment Ltd,4615354,"178,229.46 ",Optional requirement only,0
Department of Health,Imperial College Healthcare NHS Trust,07/08/2022,Agency Nursing: Qualified,Div Of Med & Integrated Care,Reed Specialist Recruitment Ltd,4615419,"179,469.26 ",Optional requirement only,0
Department of Health,Imperial College Healthcare NHS Trust,07/08/2022,Agency Nursing: Qualified,Div Of Med & Integrated Care,Reed Specialist Recruitment Ltd,4615421,"222,458.10 ",Optional requirement only,0
Department of Health,Imperial College Healthcare NHS Trust,07/08/2022,Agency Nursing: Qualified,"Div Of Surg, Cardiov & Cancer",Reed Specialist Recruitment Ltd,4615354,"263,604.72 ",Optional requirement only,0
Department of Health,Imperial College Healthcare NHS Trust,07/08/2022,Agency Nursing: Qualified,"Div Of Surg, Cardiov & Cancer",Reed Specialist Recruitment Ltd,4615419,"464,980.03 ",Optional requirement only,0
Department of Health,Imperial College Healthcare NHS Trust,07/08/2022,Agency Nursing: Qualified,"Div Of Surg, Cardiov & Cancer",Reed Specialist Recruitment Ltd,4615421,"684,936.14 ",Optional requirement only,0
Department of Health,Imperial College Healthcare NHS Trust,07/08/2022,Agency Nursing: Qualified,Human Resources,Reed Specialist Recruitment Ltd,4615354,"125,485.37 ",Optional requirement only,0
Department of Health,Imperial College Healthcare NHS Trust,07/08/2022,Agency Nursing: Qualified,Human Resources,Reed Specialist Recruitment Ltd,4615419,"30,173.22 ",Optional requirement only,0
Department of Health,Imperial College Healthcare NHS Trust,07/12/2022,Acton Housing Association,Ichnt Balance Sheet,A2dominion Housing Group Ltd,4616865,"258,700.94 ",Optional requirement only,Housing Deductions
Department of Health,Imperial College Healthcare NHS Trust,07/12/2022,Bldg/Eng Equip Maint/Rep,Estates Directorate,Cbre Managed Services Ltd,4616856,"298,406.24 ",Optional requirement only,0
Department of Health,Imperial College Healthcare NHS Trust,07/12/2022,Blood Products,Pathology,Nhs Blood And Transplant,4601155,"166,973.52 ",Optional requirement only,0
Department of Health,Imperial College Healthcare NHS Trust,07/12/2022,Cleaning Materials,Estates Directorate,Synergy Health Managed Services Ltd,4617062,"53,679.86 ",Optional requirement only,0
Department of Health,Imperial College Healthcare NHS Trust,07/12/2022,Computer Maintenance,Information & Comms Technology,Cerner Ltd,4614324,"57,071.96 ",Optional requirement only,0
Department of Health,Imperial College Healthcare NHS Trust,07/12/2022,Computer Software/License,Human Resources,Teams And Leadership Ltd,4592183,"54,000.00 ",Optional requirement only,0
Department of Health,Imperial College Healthcare NHS Trust,07/12/2022,Computer Software/License,Information & Comms Technology,Cerner Ltd,4614325,"322,737.00 ",Optional requirement only,0
Department of Health,Imperial College Healthcare NHS Trust,07/12/2022,Contr Refuse & Clin Waste,Estates Directorate,Grundon Waste Management Ltd,4597730,"37,109.69 ",Optional requirement only,0
Department of Health,Imperial College Healthcare NHS Trust,07/12/2022,Cx-Hh Consultant Load,Ichnt Balance Sheet,Dr Andrew Wright,4616873,"40,046.05 ",Optional requirement only,0
Department of Health,Imperial College Healthcare NHS Trust,07/12/2022,Cy Auc -Addns-Bd Purchased,Capital Summary,Cbre Managed Services Ltd,4616856,"254,950.60 ",Optional requirement only,0
Department of Health,Imperial College Healthcare NHS Trust,07/12/2022,Cy Auc -Addns-Bd Purchased,Capital Summary,Cuffe  Plc,4610970,"37,542.16 ",Optional requirement only,0
Department of Health,Imperial College Healthcare NHS Trust,07/12/2022,Cy Auc -Addns-Bd Purchased,Capital Summary,M&J Group (Construction & Roofin) Ltd [Cs],4603100,"349,589.17 ",Optional requirement only,0
Department of Health,Imperial College Healthcare NHS Trust,07/12/2022,Cy Auc -Addns- Prof Fee)-Purch,Capital Summary,Aecom,4612253,"53,401.20 ",Optional requirement only,0
Department of Health,Imperial College Healthcare NHS Trust,07/12/2022,Cy Auc -Addns- Prof Fee)-Purch,Capital Summary,Aecom,4612254,"63,170.40 ",Optional requirement only,0
Department of Health,Imperial College Healthcare NHS Trust,07/12/2022,Drugs Pbr Excluded,"Div Of Surg, Cardiov & Cancer",Healthcare At Home Ltd,4613840,"52,500.00 ",Optional requirement only,0
Department of Health,Imperial College Healthcare NHS Trust,07/12/2022,Ext Contr Laundry,Estates Directorate,Synergy Health Managed Services Ltd,4617065,"57,532.63 ",Optional requirement only,0
Department of Health,Imperial College Healthcare NHS Trust,07/12/2022,Ext Contr Laundry,Estates Directorate,Synergy Health Managed Services Ltd,4617066,"54,960.63 ",Optional requirement only,0
Department of Health,Imperial College Healthcare NHS Trust,07/12/2022,Ext Contr Laundry,Estates Directorate,Synergy Health Managed Services Ltd,4617067,"53,050.40 ",Optional requirement only,0
Department of Health,Imperial College Healthcare NHS Trust,07/12/2022,Gas,Estates Directorate,Total Gas & Power Ltd,4610217,"137,046.71 ",Optional requirement only,0
Department of Health,Imperial College Healthcare NHS Trust,07/12/2022,Gas,Estates Directorate,Total Gas & Power Ltd,4610220,"107,943.41 ",Optional requirement only,0
Department of Health,Imperial College Healthcare NHS Trust,07/12/2022,Gas,Estates Directorate,Total Gas & Power Ltd,4610226,"30,981.69 ",Optional requirement only,0
Department of Health,Imperial College Healthcare NHS Trust,07/12/2022,Gas,Estates Directorate,Total Gas & Power Ltd,4610446,"291,641.29 ",Optional requirement only,0
Department of Health,Imperial College Healthcare NHS Trust,07/12/2022,Med & Prof Fees (Imaging Cons),Ichnt Balance Sheet,Lindo Wing Radiology Llp,4616913,"183,772.90 ",Optional requirement only,0
Department of Health,Imperial College Healthcare NHS Trust,07/12/2022,Other Research Exp - Non-Pay,Rd Medical Directorate,Central & North West London Nhs Ft,4547105,"84,785.01 ",Optional requirement only,0
Department of Health,Imperial College Healthcare NHS Trust,07/12/2022,Other Research Exp - Pay,Rd Medical Directorate,London Borough Hammersmith & Fulham,4561756,"43,772.89 ",Optional requirement only,0
Department of Health,Imperial College Healthcare NHS Trust,07/12/2022,Other Transport Costs,Pathology,Dhl Supply Chain  (Former Excel),45308,"42,907.50 ",Optional requirement only,0
Department of Health,Imperial College Healthcare NHS Trust,07/12/2022,Services Received - Nhsts,Nhs Elect,Nhs Greater East Midlands Csu,4615719,"26,870.00 ",Optional requirement only,0
Department of Health,Imperial College Healthcare NHS Trust,07/12/2022,Thames Valley Housing Assoc,Ichnt Balance Sheet,Metropolitan Thames Valley,4616866,"112,660.65 ",Optional requirement only,Housing Deductions
Department of Health,Imperial College Healthcare NHS Trust,07/12/2022,Water,Estates Directorate,Castle Water Ltd,4598125,"31,032.10 ",Optional requirement only,0
Department of Health,Imperial College Healthcare NHS Trust,7/14/2022,Agency Ahps: Qualified,"Div Of Surg, Cardiov & Cancer",Reed Specialist Recruitment Ltd,4618443,"68,261.58 ",Optional requirement only,0
Department of Health,Imperial College Healthcare NHS Trust,7/14/2022,Agency Ahps: Unqu'D,Estates Directorate,Reed Specialist Recruitment Ltd,4618443,"34,217.44 ",Optional requirement only,0
Department of Health,Imperial College Healthcare NHS Trust,7/14/2022,Agency Consultant,Pathology,Reed Specialist Recruitment Ltd,47269,"31,099.60 ",Optional requirement only,0
Department of Health,Imperial College Healthcare NHS Trust,7/14/2022,Agency Nursing: Qualified,Div Of Med & Integrated Care,Reed Specialist Recruitment Ltd,4618443,"175,069.59 ",Optional requirement only,0
Department of Health,Imperial College Healthcare NHS Trust,7/14/2022,Agency Nursing: Qualified,"Div Of Surg, Cardiov & Cancer",Reed Specialist Recruitment Ltd,4618443,"494,738.80 ",Optional requirement only,0
Department of Health,Imperial College Healthcare NHS Trust,7/14/2022,Agency Nursing: Qualified,Div Of Women & Clin Support,Reed Specialist Recruitment Ltd,4618443,"66,760.53 ",Optional requirement only,0
Department of Health,Imperial College Healthcare NHS Trust,7/14/2022,Agency Nursing: Qualified,Human Resources,Reed Specialist Recruitment Ltd,4618443,"54,580.38 ",Optional requirement only,0
Department of Health,Imperial College Healthcare NHS Trust,7/14/2022,Agency Senior Manager,Finance Directorate,Reed Specialist Recruitment Ltd,4618443,"35,039.84 ",Optional requirement only,0
Department of Health,Imperial College Healthcare NHS Trust,7/14/2022,Computer Software/License,Estates Directorate,Fsi (Fm Solutions) Ltd,4503774,"45,334.60 ",Optional requirement only,0
Department of Health,Imperial College Healthcare NHS Trust,7/14/2022,Consultancy Fees,Redevelopment Programme,Inivos Ltd T/A Health Spaces,4579940,"52,680.00 ",Optional requirement only,0
Department of Health,Imperial College Healthcare NHS Trust,7/14/2022,Contr Other External,Estates Directorate,Cbre Managed Services Ltd,4613153,"772,866.90 ",Optional requirement only,0
Department of Health,Imperial College Healthcare NHS Trust,7/14/2022,Contr Refuse & Clin Waste,Estates Directorate,Grundon Waste Management Ltd,4616233,"35,499.73 ",Optional requirement only,0
Department of Health,Imperial College Healthcare NHS Trust,7/14/2022,Cy Auc -Addns-Bd Purchased,Capital Summary,Conduct Services Ltd,4605194,"61,004.72 ",Optional requirement only,0
Department of Health,Imperial College Healthcare NHS Trust,7/14/2022,Cy Auc -Addns-Bd Purchased,Capital Summary,Playfords Limited,4617054,"84,127.84 ",Optional requirement only,0
Department of Health,Imperial College Healthcare NHS Trust,7/14/2022,Engineering Contracts,Rd Surgery & Cancer Division,Accenture (Uk) Ltd,4598106,"160,864.20 ",Optional requirement only,0
Department of Health,Imperial College Healthcare NHS Trust,7/14/2022,Jac - Stock,Balance Sheet St Marys,Alloga Uk Ltd,4619109,"77,292.00 ",Optional requirement only,Stock
Department of Health,Imperial College Healthcare NHS Trust,7/14/2022,Jac - Stock,Balance Sheet St Marys,Roche Products Ltd,4618973,"47,673.36 ",Optional requirement only,Stock
Department of Health,Imperial College Healthcare NHS Trust,7/14/2022,Jac - Stock,Balance Sheet St Marys,Roche Products Ltd,4619176,"388,596.00 ",Optional requirement only,Stock
Department of Health,Imperial College Healthcare NHS Trust,7/14/2022,Med & Surg Equip General,Div Of Women & Clin Support,Alliance Medical Ltd,4612463,"83,750.40 ",Optional requirement only,0
Department of Health,Imperial College Healthcare NHS Trust,7/14/2022,Rent,Estates Directorate,Metropolitan Thames Valley,4616602,"51,587.29 ",Optional requirement only,0
Department of Health,Imperial College Healthcare NHS Trust,7/14/2022,Service Charge,Div Of Med & Integrated Care,University  College  London,4562482,"38,837.97 ",Optional requirement only,0
Department of Health,Imperial College Healthcare NHS Trust,7/14/2022,Services Received - Nhsts,Div Of Med & Integrated Care,Central London Community Healthcare Nhs Trust,4610214,"62,634.24 ",Optional requirement only,0
Department of Health,Imperial College Healthcare NHS Trust,7/19/2022,Blood Products,Pathology,Nhs Blood And Transplant,4601154,"318,514.62 ",Optional requirement only,0
Department of Health,Imperial College Healthcare NHS Trust,7/19/2022,Computer Maintenance,Information & Comms Technology,Xerox (Uk) Ltd,4615357,"112,456.80 ",Optional requirement only,0
Department of Health,Imperial College Healthcare NHS Trust,7/19/2022,Computer Software/License,Div Of Women & Clin Support,Philips Electronics Uk Ltd,4605983,"296,012.10 ",Optional requirement only,0
Department of Health,Imperial College Healthcare NHS Trust,7/19/2022,Computer Software/License,Private Patients Directorate,Streets Heaver Computer Systems,4598164,"55,968.00 ",Optional requirement only,0
Department of Health,Imperial College Healthcare NHS Trust,7/19/2022,Cy Auc -Addns- P & M-Purchased,Capital Summary,Canon Medical Systems Ltd,4612479,"32,000.00 ",Optional requirement only,0
Department of Health,Imperial College Healthcare NHS Trust,7/19/2022,Cy Auc -Addns- P & M-Purchased,Capital Summary,Haag-Streit Uk Ltd,4592322,"61,200.00 ",Optional requirement only,0
Department of Health,Imperial College Healthcare NHS Trust,7/19/2022,Decontamination Services,Estates Directorate,Ihss Limited,4614622,"400,304.21 ",Optional requirement only,0
Department of Health,Imperial College Healthcare NHS Trust,7/19/2022,Ext Contract - Patient Travel,Estates Directorate,Dhl Supply Chain  (Former Excel),4590998,"38,137.91 ",Optional requirement only,0
Department of Health,Imperial College Healthcare NHS Trust,7/19/2022,Gas,Estates Directorate,Total Gas & Power Ltd,4612471,"241,807.60 ",Optional requirement only,0
Department of Health,Imperial College Healthcare NHS Trust,7/19/2022,Gas,Estates Directorate,Total Gas & Power Ltd,4612472,"51,534.81 ",Optional requirement only,0
Department of Health,Imperial College Healthcare NHS Trust,7/19/2022,Gas,Estates Directorate,Total Gas & Power Ltd,4612477,"212,632.86 ",Optional requirement only,0
Department of Health,Imperial College Healthcare NHS Trust,7/19/2022,Gas,Estates Directorate,Total Gas & Power Ltd,4615053,"42,119.87 ",Optional requirement only,0
Department of Health,Imperial College Healthcare NHS Trust,7/19/2022,Gas,Estates Directorate,Total Gas & Power Ltd,4615055,"97,067.77 ",Optional requirement only,0
Department of Health,Imperial College Healthcare NHS Trust,7/19/2022,Ic Pay Recharge In: Med,"Div Of Surg, Cardiov & Cancer",Imperial College London,4394615,"25,000.00 ",Optional requirement only,0
Department of Health,Imperial College Healthcare NHS Trust,7/19/2022,Ic Pay Recharge In: Med,"Div Of Surg, Cardiov & Cancer",Imperial College London,4605721,"25,000.00 ",Optional requirement only,0
Department of Health,Imperial College Healthcare NHS Trust,7/19/2022,Jac - Stock,Balance Sheet St Marys,Alliance Healthcare (Distribution) Ltd,4620947,"88,019.91 ",Optional requirement only,Stock
Department of Health,Imperial College Healthcare NHS Trust,7/19/2022,Jac - Stock,Balance Sheet St Marys,Alloga Uk Ltd,4618847,"196,620.00 ",Optional requirement only,Stock
Department of Health,Imperial College Healthcare NHS Trust,7/19/2022,Jac - Stock,Balance Sheet St Marys,Alloga Uk Ltd,4618854,"48,816.00 ",Optional requirement only,Stock
Department of Health,Imperial College Healthcare NHS Trust,7/19/2022,Jac - Stock,Balance Sheet St Marys,Alloga Uk Ltd,4619308,"55,440.00 ",Optional requirement only,Stock
Department of Health,Imperial College Healthcare NHS Trust,7/19/2022,Jac - Stock,Balance Sheet St Marys,Alloga Uk Ltd,4619309,"44,116.80 ",Optional requirement only,Stock
Department of Health,Imperial College Healthcare NHS Trust,7/19/2022,Jac - Stock,Balance Sheet St Marys,Alloga Uk Ltd,4619313,"53,480.64 ",Optional requirement only,Stock
Department of Health,Imperial College Healthcare NHS Trust,7/19/2022,Jac - Stock,Balance Sheet St Marys,Alloga Uk Ltd,4619336,"32,400.00 ",Optional requirement only,Stock
Department of Health,Imperial College Healthcare NHS Trust,7/19/2022,Jac - Stock,Balance Sheet St Marys,Alloga Uk Ltd,4619340,"45,000.00 ",Optional requirement only,Stock
Department of Health,Imperial College Healthcare NHS Trust,7/19/2022,Jac - Stock,Balance Sheet St Marys,Alloga Uk Ltd,4619343,"181,704.00 ",Optional requirement only,Stock
Department of Health,Imperial College Healthcare NHS Trust,7/19/2022,Jac - Stock,Balance Sheet St Marys,Alloga Uk Ltd,4619348,"116,616.00 ",Optional requirement only,Stock
Department of Health,Imperial College Healthcare NHS Trust,7/19/2022,Jac - Stock,Balance Sheet St Marys,Alloga Uk Ltd,4621979,"40,680.00 ",Optional requirement only,Stock
Department of Health,Imperial College Healthcare NHS Trust,7/19/2022,Jac - Stock,Balance Sheet St Marys,Bayer Plc,4621959,"36,498.24 ",Optional requirement only,Stock
Department of Health,Imperial College Healthcare NHS Trust,7/19/2022,Jac - Stock,Balance Sheet St Marys,Bms Pharmaceuticals Ltd (0034),4621297,"36,101.52 ",Optional requirement only,Stock
Department of Health,Imperial College Healthcare NHS Trust,7/19/2022,Jac - Stock,Balance Sheet St Marys,Jazz Pharmaceuticals Uk Limited [Ph],4619523,"98,550.00 ",Optional requirement only,Stock
Department of Health,Imperial College Healthcare NHS Trust,7/19/2022,Jac - Stock,Balance Sheet St Marys,Octapharma Ltd,4620827,"51,600.00 ",Optional requirement only,Stock
Department of Health,Imperial College Healthcare NHS Trust,7/19/2022,Jac - Stock,Balance Sheet St Marys,Qualasept Ltd,4621995,"55,435.68 ",Optional requirement only,Stock
Department of Health,Imperial College Healthcare NHS Trust,7/19/2022,Jac - Stock,Balance Sheet St Marys,Roche Products Ltd,4618936,"35,892.48 ",Optional requirement only,Stock
Department of Health,Imperial College Healthcare NHS Trust,7/19/2022,Jac - Stock,Balance Sheet St Marys,Roche Products Ltd,4618937,"52,991.52 ",Optional requirement only,Stock
Department of Health,Imperial College Healthcare NHS Trust,7/19/2022,Jac - Stock,Balance Sheet St Marys,Roche Products Ltd,4619425,"474,353.88 ",Optional requirement only,Stock
Department of Health,Imperial College Healthcare NHS Trust,7/19/2022,Jac - Stock,Balance Sheet St Marys,Roche Products Ltd,4619426,"34,948.80 ",Optional requirement only,Stock
Department of Health,Imperial College Healthcare NHS Trust,7/19/2022,Laboratory Culture Media,Pathology,Dhl Supply Chain  (Former Excel),47345,"58,500.00 ",Optional requirement only,0
Department of Health,Imperial College Healthcare NHS Trust,7/19/2022,Other Research Exp - Non-Pay,Rd Medical Directorate,Central London Healthcare Cic,4621815,"66,860.50 ",Optional requirement only,0
Department of Health,Imperial College Healthcare NHS Trust,7/19/2022,Other Research Exp - Non-Pay,Rd Medical Directorate,Central & North West London Nhs Ft,4611602,"138,959.00 ",Optional requirement only,0
Department of Health,Imperial College Healthcare NHS Trust,7/19/2022,Other Research Exp - Non-Pay,Rd Medical Directorate,Ealing Gp Limited,4621819,"122,831.85 ",Optional requirement only,0
Department of Health,Imperial College Healthcare NHS Trust,7/19/2022,Other Research Exp - Non-Pay,Rd Medical Directorate,Gp Direct,4621817,"65,908.65 ",Optional requirement only,0
Department of Health,Imperial College Healthcare NHS Trust,7/19/2022,Other Research Exp - Non-Pay,Rd Medical Directorate,H And Fgpf Th Cic,4621816,"69,423.25 ",Optional requirement only,0
Department of Health,Imperial College Healthcare NHS Trust,7/19/2022,Other Research Exp - Non-Pay,Rd Medical Directorate,Harness Care Co-Operative Limited,4621818,"63,365.00 ",Optional requirement only,0
Department of Health,Imperial College Healthcare NHS Trust,7/19/2022,Other Research Exp - Non-Pay,Rd Medical Directorate,Hillingdon Primary Care Confederation,4621823,"61,078.00 ",Optional requirement only,0
Department of Health,Imperial College Healthcare NHS Trust,7/19/2022,Other Research Exp - Non-Pay,Rd Medical Directorate,Imperial College London,4614648,"1,125,000.00 ",Optional requirement only,0
Department of Health,Imperial College Healthcare NHS Trust,7/19/2022,Other Research Exp - Non-Pay,Rd Medical Directorate,K&W Healthcare Ltd,4621814,"70,608.80 ",Optional requirement only,0
Department of Health,Imperial College Healthcare NHS Trust,7/19/2022,Other Research Exp - Non-Pay,Rd Medical Directorate,London Medical Associates Ltd,4621822,"60,801.10 ",Optional requirement only,0
Department of Health,Imperial College Healthcare NHS Trust,7/19/2022,Other Research Exp - Non-Pay,Rd Medical Directorate,London North West Univ Healthcare Nhs Trust,4612418,"371,952.00 ",Optional requirement only,0
Department of Health,Imperial College Healthcare NHS Trust,7/19/2022,Other Research Exp - Non-Pay,Rd Medical Directorate,The West London Research Network Cic,4621833,"60,000.00 ",Optional requirement only,0
Department of Health,Imperial College Healthcare NHS Trust,7/19/2022,Other Research Exp - Non-Pay,Rd Medical Directorate,West London  Nhs Trust,4612724,"51,337.00 ",Optional requirement only,0
Department of Health,Imperial College Healthcare NHS Trust,7/19/2022,Other Research Exp - Pay,Rd Surgery & Cancer Division,Imperial College London,4616681,"37,650.12 ",Optional requirement only,0
Department of Health,Imperial College Healthcare NHS Trust,7/19/2022,Other Transport Costs,Estates Directorate,Dhl Supply Chain  (Former Excel),4613219,"35,564.06 ",Optional requirement only,0
Department of Health,Imperial College Healthcare NHS Trust,7/19/2022,Other Transport Costs,Pathology,Dhl Supply Chain  (Former Excel),46039,"36,241.09 ",Optional requirement only,0
Department of Health,Imperial College Healthcare NHS Trust,7/19/2022,Patients Appl: Purchase,"Div Of Surg, Cardiov & Cancer",Blatchford Limited,4595707,"45,040.08 ",Optional requirement only,0
Department of Health,Imperial College Healthcare NHS Trust,7/19/2022,Patients Appl: Purchase,"Div Of Surg, Cardiov & Cancer",Blatchford Limited,4612406,"45,264.14 ",Optional requirement only,0
Department of Health,Imperial College Healthcare NHS Trust,7/19/2022,Srvcsrecd-Other Nhs,Finance Directorate,Salford Royal Nhs Foundation Trust,4607041,"27,453.00 ",Optional requirement only,0
Department of Health,Imperial College Healthcare NHS Trust,7/19/2022,Trust Doctor - Locum,"Div Of Surg, Cardiov & Cancer",Reed Specialist Recruitment Ltd,4620295,"34,249.59 ",Optional requirement only,0
Department of Health,Imperial College Healthcare NHS Trust,7/20/2022,Income Tax Paye,Ichnt Balance Sheet,Hmrc Government Employers Account,4616107,"9,654,348.02 ",Optional requirement only,0
Department of Health,Imperial College Healthcare NHS Trust,7/20/2022,Income Tax Paye,Ichnt Balance Sheet,Hmrc Government Employers Account,4616108,"11,369,712.57 ",Optional requirement only,0
Department of Health,Imperial College Healthcare NHS Trust,7/21/2022,Agency Nursing: Qualified,Div Of Med & Integrated Care,Reed Specialist Recruitment Ltd,4622875,"137,250.89 ",Optional requirement only,0
Department of Health,Imperial College Healthcare NHS Trust,7/21/2022,Agency Nursing: Qualified,"Div Of Surg, Cardiov & Cancer",Reed Specialist Recruitment Ltd,4622875,"228,055.53 ",Optional requirement only,0
Department of Health,Imperial College Healthcare NHS Trust,7/21/2022,Agency Nursing: Qualified,Human Resources,Reed Specialist Recruitment Ltd,4622875,"34,525.32 ",Optional requirement only,0
Department of Health,Imperial College Healthcare NHS Trust,7/21/2022,Decontamination Services,Estates Directorate,Ihss Limited,4614623,"400,304.21 ",Optional requirement only,0
Department of Health,Imperial College Healthcare NHS Trust,7/21/2022,Decontamination Services,Estates Directorate,Ihss Limited,4614628,"400,304.21 ",Optional requirement only,0
Department of Health,Imperial College Healthcare NHS Trust,7/21/2022,Electricity,Estates Directorate,Edf Energy Customer Plc,4623403,"48,520.72 ",Optional requirement only,0
Department of Health,Imperial College Healthcare NHS Trust,7/21/2022,Electricity,Estates Directorate,Edf Energy Customer Plc,4623411,"48,523.68 ",Optional requirement only,0
Department of Health,Imperial College Healthcare NHS Trust,7/21/2022,Ext Contract - Patient Travel,Estates Directorate,Dhl Supply Chain  (Former Excel),4612244,"38,018.89 ",Optional requirement only,0
Department of Health,Imperial College Healthcare NHS Trust,7/21/2022,Ext Contract - Patient Travel,Estates Directorate,Dhl Supply Chain  (Former Excel),4612944,"80,083.10 ",Optional requirement only,0
Department of Health,Imperial College Healthcare NHS Trust,7/21/2022,Ext Contract - Patient Travel,Estates Directorate,Falck Uk Ambulance Service Limited,4615344,"126,977.80 ",Optional requirement only,0
Department of Health,Imperial College Healthcare NHS Trust,7/21/2022,Ext Contract - Patient Travel,Estates Directorate,Falck Uk Ambulance Service Limited,4616116,"79,969.98 ",Optional requirement only,0
Department of Health,Imperial College Healthcare NHS Trust,7/21/2022,Jac - Stock,Balance Sheet St Marys,Alliance Healthcare (Distribution) Ltd,4621154,"63,195.74 ",Optional requirement only,Stock
Department of Health,Imperial College Healthcare NHS Trust,7/21/2022,Jac - Stock,Balance Sheet St Marys,Bayer Plc,4620763,"39,235.61 ",Optional requirement only,Stock
Department of Health,Imperial College Healthcare NHS Trust,7/21/2022,Jac - Stock,Balance Sheet St Marys,Bayer Plc,4620764,"62,047.01 ",Optional requirement only,Stock
Department of Health,Imperial College Healthcare NHS Trust,7/21/2022,Jac - Stock,Balance Sheet St Marys,Bms Pharmaceuticals Ltd (0034),4623441,"36,101.52 ",Optional requirement only,Stock
Department of Health,Imperial College Healthcare NHS Trust,7/21/2022,Jac - Stock,Balance Sheet St Marys,Bms Pharmaceuticals Ltd (0034),4623442,"36,101.52 ",Optional requirement only,Stock
Department of Health,Imperial College Healthcare NHS Trust,7/21/2022,Legal Fees,Central Costs,Capsticks Solicitors Llp,4579944,"30,848.04 ",Optional requirement only,0
Department of Health,Imperial College Healthcare NHS Trust,7/21/2022,Med & Surg Equip Repair,"Div Of Surg, Cardiov & Cancer",Ge Medical Systems Limited,4621811,"37,269.55 ",Optional requirement only,0
Department of Health,Imperial College Healthcare NHS Trust,7/21/2022,Nhs Pay Recharge In: Med,Central Costs,Royal Free London Nhs Foundation Trust,4580053,"120,857.54 ",Optional requirement only,0
Department of Health,Imperial College Healthcare NHS Trust,7/21/2022,Nhs Pay Recharge In: Med,Central Costs,Royal Free London Nhs Foundation Trust,4594678,"119,240.43 ",Optional requirement only,0
Department of Health,Imperial College Healthcare NHS Trust,7/21/2022,Nhs Pay Recharge In: Med,Finance Directorate,Royal Free London Nhs Foundation Trust,4561663,"118,847.98 ",Optional requirement only,0
Department of Health,Imperial College Healthcare NHS Trust,7/21/2022,Nhs Pay Recharge In: Med,Finance Directorate,Royal Free London Nhs Foundation Trust,4612411,"120,830.89 ",Optional requirement only,0
Department of Health,Imperial College Healthcare NHS Trust,7/21/2022,Other Research Exp - Non-Pay,Rd Surgery & Cancer Division,Imperial College London,4616682,"77,773.38 ",Optional requirement only,0
Department of Health,Imperial College Healthcare NHS Trust,7/21/2022,Other Research Exp - Pay,Rd Medical Directorate,Imperial College London,4466513,"99,358.73 ",Optional requirement only,0
Department of Health,Imperial College Healthcare NHS Trust,7/21/2022,Other Research Exp - Pay,Rd Medical Directorate,Imperial College London,4555549,"51,207.06 ",Optional requirement only,0
Department of Health,Imperial College Healthcare NHS Trust,7/21/2022,Other Research Exp - Pay,Rd Medical Directorate,Imperial College London,4566262,"78,240.80 ",Optional requirement only,0
Department of Health,Imperial College Healthcare NHS Trust,7/21/2022,Other Research Exp - Pay,Rd Medical Directorate,Imperial College London,4567800,"63,949.33 ",Optional requirement only,0
Department of Health,Imperial College Healthcare NHS Trust,7/21/2022,Other Research Exp - Pay,Rd Medical Directorate,Imperial College London,4611728,"386,850.97 ",Optional requirement only,0
Department of Health,Imperial College Healthcare NHS Trust,7/21/2022,Other Research Exp - Pay,Rd Medical Directorate,Imperial College London,4619926,"26,097.77 ",Optional requirement only,0
Department of Health,Imperial College Healthcare NHS Trust,7/21/2022,Other Research Exp - Pay,Rd Medical Directorate,Imperial College London,4620744,"25,996.82 ",Optional requirement only,0
Department of Health,Imperial College Healthcare NHS Trust,7/21/2022,Other Research Exp - Pay,Rd Medicine Division,Imperial College London,4595826,"66,897.68 ",Optional requirement only,0
Department of Health,Imperial College Healthcare NHS Trust,7/21/2022,Other Research Exp - Pay,Rdwomen And Children Division,Imperial College London,4608802,"106,968.48 ",Optional requirement only,0
Department of Health,Imperial College Healthcare NHS Trust,7/21/2022,Provisions,Estates Directorate,Brakes Bros Ltd,4619244,"143,601.18 ",Optional requirement only,0
Department of Health,Imperial College Healthcare NHS Trust,7/21/2022,Srvcsrecd-Other Nhs,Central Costs,Chelsea And  Westminster Hospital Nhs Ft,4561486,"71,661.56 ",Optional requirement only,0
Department of Health,Imperial College Healthcare NHS Trust,7/21/2022,Srvcsrecd-Other Nhs,Central Costs,The Hillingdon Hospital Nhs Foundation Trust,4554281,"41,493.25 ",Optional requirement only,0
Department of Health,Imperial College Healthcare NHS Trust,7/25/2022,Bldg/Eng Equip Maint/Rep,Div Of Med & Integrated Care,Hayes Cottage Renal Unit Ltd,4621444,"78,750.00 ",Optional requirement only,0
Department of Health,Imperial College Healthcare NHS Trust,7/25/2022,Dist Award - Local Cea,Div Of Med & Integrated Care,Imperial College London,4627424,"27,961.95 ",Optional requirement only,0
Department of Health,Imperial College Healthcare NHS Trust,7/25/2022,Dist Award - Nat Cea,Div Of Med & Integrated Care,Imperial College London,4627424,"87,652.62 ",Optional requirement only,0
Department of Health,Imperial College Healthcare NHS Trust,7/25/2022,Dist Award - Nat Cea,"Div Of Surg, Cardiov & Cancer",Imperial College London,4627424,"64,945.47 ",Optional requirement only,0
Department of Health,Imperial College Healthcare NHS Trust,7/25/2022,Electricity,Estates Directorate,Edf Energy Customer Plc,4623416,"412,838.55 ",Optional requirement only,0
Department of Health,Imperial College Healthcare NHS Trust,7/25/2022,Electricity,Estates Directorate,Edf Energy Customer Plc,4623417,"125,697.61 ",Optional requirement only,0
Department of Health,Imperial College Healthcare NHS Trust,7/25/2022,Electricity,Estates Directorate,Edf Energy Customer Plc,4623419,"387,691.77 ",Optional requirement only,0
Department of Health,Imperial College Healthcare NHS Trust,7/25/2022,Electricity,Estates Directorate,Edf Energy Customer Plc,4623424,"42,451.51 ",Optional requirement only,0
Department of Health,Imperial College Healthcare NHS Trust,7/25/2022,Electricity,Estates Directorate,Edf Energy Customer Plc,4623426,"59,571.53 ",Optional requirement only,0
Department of Health,Imperial College Healthcare NHS Trust,7/25/2022,Ic Pay Recharge In: Med,Div Of Med & Integrated Care,Imperial College London,4627424,"163,356.63 ",Optional requirement only,0
Department of Health,Imperial College Healthcare NHS Trust,7/25/2022,Ic Pay Recharge In: Med,"Div Of Surg, Cardiov & Cancer",Imperial College London,4627422,"38,678.54 ",Optional requirement only,0
Department of Health,Imperial College Healthcare NHS Trust,7/25/2022,Ic Pay Recharge In: Med,"Div Of Surg, Cardiov & Cancer",Imperial College London,4627424,"446,985.84 ",Optional requirement only,0
Department of Health,Imperial College Healthcare NHS Trust,7/25/2022,Ic Pay Recharge In: Med,Div Of Women & Clin Support,Imperial College London,4627424,"42,915.73 ",Optional requirement only,0
Department of Health,Imperial College Healthcare NHS Trust,7/25/2022,Ic Pay Recharge In: Med,Pathology,Imperial College London,4626686,"44,828.15 ",Optional requirement only,0
Department of Health,Imperial College Healthcare NHS Trust,7/25/2022,Jac - Stock,Balance Sheet St Marys,Bayer Plc,4623437,"32,848.42 ",Optional requirement only,Stock
Department of Health,Imperial College Healthcare NHS Trust,7/25/2022,Lease Charges,Information & Comms Technology,Xerox (Uk) Ltd,4616149,"30,599.00 ",Optional requirement only,0
Department of Health,Imperial College Healthcare NHS Trust,7/25/2022,Med & Surg Equip General,"Div Of Surg, Cardiov & Cancer",Karl Storz Endoscopy (Uk) Ltd,4615039,"67,990.80 ",Optional requirement only,0
Department of Health,Imperial College Healthcare NHS Trust,7/25/2022,Rates,Estates Directorate,London Borough Hammersmith & Fulham,4623159,"129,010.00 ",Optional requirement only,0
Department of Health,Imperial College Healthcare NHS Trust,7/25/2022,Rates,Estates Directorate,London Borough Hammersmith & Fulham,4623160,"146,743.00 ",Optional requirement only,0
,,,,,,Sum:,"61,068,193.66 ",,
,,,,,Count:,258,,,
